bitfinex/quotes_ETHUSD_20220201
["timestamp","ask_amount","ask_price","bid_price","bid_amount"]
[1643690808794,0.95401263,2736.0,2735.6,1.82713]
[1643690808998,0.9135609,2736.5,2735.6,1.82713]
[1643690809593,0.9135609,2736.5,2735.6,3.12713]
[1643690809797,0.9135609,2736.5,2736.3,0.35314895]
[1643690809994,0.68450128,2736.4,2736.3,0.35314895]
[1643690810195,0.68450128,2736.4,2735.6,4.0407]
[1643690810936,0.68450128,2736.4,2735.8,0.91356]
[1643690811331,0.68450128,2736.4,2735.8,1.21356]
[1643690811730,0.68450128,2736.4,2735.8,2.12707]
[1643690812630,0.68450128,2736.4,2736.2,0.39309864]
[1643690813234,0.68450128,2736.4,2735.9,1.0]
[1643690813546,0.68450128,2736.4,2735.8,2.12707]
[1643690815178,0.68450128,2736.4,2735.8,1.82707]
[1643690815382,0.1827,2736.3,2735.9,0.39970986]
[1643690815583,0.68450128,2736.4,2735.9,0.39970986]
[1643690816783,0.68450128,2736.4,2735.9,1.39970986]
[1643690816987,0.68450128,2736.4,2735.9,0.39970986]
[1643690817182,0.68450128,2736.4,2735.9,1.39970986]
[1643690819336,0.68450128,2736.4,2735.9,3.38017861]
[1643690819545,0.1827,2736.6,2735.9,3.38017861]
[1643690819741,0.1827,2736.6,2735.9,1.39970986]
[1643690820139,0.9135349,2736.5,2735.9,1.39970986]
[1643690820537,1.80755286,2736.5,2736.4,0.38681449]
[1643690820940,1.80755286,2736.5,2736.4,0.28681449]
[1643690822584,0.9135349,2736.5,2736.4,0.28681449]
[1643690823180,1.0961581,2736.7,2736.4,0.28681449]
[1643690826536,1.0961581,2736.7,2736.5,2.0]
[1643690826537,0.9134581,2736.7,2736.5,2.0]
[1643690826741,0.9132979,2737.0,2736.5,2.3]
[1643690826936,1.2442,2737.7,2736.5,0.824]
[1643690826937,0.1826,2737.5,2736.5,0.824]
[1643690827135,0.1826,2737.6,2736.5,3.824]
[1643690827339,1.2442,2737.7,2736.5,3.824]
[1643690827537,0.1826,2738.0,2737.9,0.43680983]
[1643690827738,0.1826,2738.1,2737.9,0.43680983]
[1643690827942,0.1826,2738.1,2737.4,0.913]
[1643690828136,0.1826,2738.1,2737.1,2.73897]
[1643690828137,0.9129917,2738.0,2737.1,1.82599]
[1643690828437,0.1826,2738.1,2737.1,1.82599]
[1643690828438,0.1826,2737.9,2737.1,1.82599]
[1643690828636,2.0,2738.1,2737.1,1.82599]
[1643690828637,0.1826,2738.0,2737.1,1.82599]
[1643690829136,0.936075,2737.6,2737.4,0.44520846]
[1643690829888,0.1826,2737.8,2737.4,0.44520846]
[1643690830083,0.9131127,2737.8,2737.4,0.44520846]
[1643690830285,0.4826,2737.7,2737.4,0.44520846]
[1643690831086,0.6974886,2737.5,2737.4,0.44520846]
[1643690832294,0.6974886,2737.5,2736.9,2.8262]
[1643690832498,2.15791701,2737.4,2736.7,0.0603]
[1643690832690,2.34051701,2737.4,2736.4,1.0]
[1643690832891,2.34051701,2737.4,2736.4,3.8]
[1643690833089,2.34051701,2737.4,2736.4,3.5]
[1643690833291,2.34051701,2737.4,2736.5,1.0]
[1643690833529,2.34051701,2737.4,2737.0,0.31994612]
[1643690834133,0.9134016,2737.2,2737.0,0.31994612]
[1643690835736,1.0960016,2737.2,2736.5,1.8016279]
[1643690835949,3.04859124,2737.2,2736.5,1.3]
[1643690836138,4.69279544,2737.2,2736.5,1.3]
[1643690836339,0.1826,2737.1,2736.4,1.82659]
[1643690836540,0.1826,2737.1,2736.4,2.12659]
[1643690837038,0.1826,2737.1,2737.0,0.41687846]
[1643690837277,2.7402058,2737.2,2737.0,0.41687846]
[1643690837476,3.9826,2737.1,2737.0,0.41687846]
[1643690838881,3.8,2737.1,2737.0,0.41687846]
[1643690839980,2.7402058,2737.2,2737.0,0.41687846]
[1643690841836,0.1826,2737.5,2737.0,0.41687846]
[1643690842042,0.1826,2737.8,2737.1,1.99788053]
[1643690842381,3.6006,2737.9,2737.1,0.3]
[1643690842742,3.6006,2737.9,2737.1,1.3]
[1643690843138,3.6006,2737.9,2737.8,1.10262246]
[1643690843337,0.1826,2738.2,2737.8,1.10262246]
[1643690843738,0.1826,2738.3,2737.8,1.10262246]
[1643690844238,0.4826,2738.3,2737.8,1.10262246]
[1643690845083,0.4826,2738.3,2737.8,0.33604103]
[1643690846185,2.3087084,2738.3,2737.8,0.33604103]
[1643690846387,0.9130539,2738.2,2737.8,0.33604103]
[1643690846785,0.9130539,2738.2,2737.8,0.28604103]
[1643690849129,0.9129046,2738.4,2737.8,0.28604103]
[1643690850536,0.9129046,2738.4,2738.0,0.80052551]
[1643690850735,0.9129046,2738.4,2738.0,2.10052551]
[1643690851130,0.9129046,2738.4,2738.0,1.10052551]
[1643690851331,0.9129046,2738.4,2738.0,2.10052551]
[1643690851535,0.9129046,2738.4,2738.0,1.10052551]
[1643690852178,0.9129046,2738.4,2738.0,2.10052551]
[1643690852592,0.9129046,2738.4,2738.3,0.44090029]
[1643690852784,0.9129046,2738.4,2737.8,1.0]
[1643690852984,0.9129046,2738.4,2737.6,1.82579]
[1643690853188,0.1826,2738.3,2737.6,1.82579]
[1643690853584,0.1826,2738.3,2737.5,1.0]
[1643690853786,0.1826,2738.3,2737.8,0.73349622]
[1643690853996,0.1826,2738.3,2737.9,0.39408866]
[1643690856934,1.53941517,2738.2,2737.9,0.39408866]
[1643690857160,0.1826,2738.3,2737.9,0.39408866]
[1643690858345,0.1826,2738.3,2737.9,1.22166266]
[1643690858745,0.1826,2738.3,2737.9,0.39408866]
[1643690859343,0.4826,2738.3,2737.9,0.39408866]
[1643690859787,4.0282414,2738.0,2737.9,0.39408866]
[1643690859989,4.5108414,2738.0,2737.3,0.66993272]
[1643690860185,0.1826,2737.9,2737.4,2.0]
[1643690860386,4.0282414,2738.0,2737.3,0.91313]
[1643690861187,4.0282414,2738.0,2737.9,0.39685312]
[1643690861489,4.2108414,2738.0,2737.9,0.39685312]
[1643690862086,4.2108414,2738.0,2737.2,1.30719934]
[1643690862287,0.9131295,2737.9,2737.8,0.40944682]
[1643690863834,0.9130596,2738.1,2737.8,0.40944682]
[1643690864041,0.9130596,2738.1,2736.8,0.40527615]
[1643690864232,0.9130596,2738.1,2736.8,2.75937122]
[1643690864431,0.9130596,2738.1,2736.8,3.36485853]
[1643690864637,0.9130596,2738.1,2736.8,3.06485853]
[1643690864837,0.9130596,2738.1,2737.3,0.81419715]
[1643690865433,0.9130596,2738.1,2737.4,0.36564224]
[1643690865834,0.9130596,2738.1,2737.4,1.27871224]
[1643690866038,0.1826,2738.2,2737.5,2.73887]
[1643690867038,0.1826,2738.2,2738.1,0.44028906]
[1643690867296,1.72204809,2738.2,2738.1,0.44028906]
[1643690867496,1.72204809,2738.2,2738.0,0.41704599]
[1643690867696,1.53944809,2738.1,2738.0,0.41704599]
[1643690868297,1.53944809,2738.2,2738.0,0.41704599]
[1643690868497,1.53944809,2738.1,2738.0,0.41704599]
[1643690869100,1.53945989,2738.1,2738.0,0.41704599]
[1643690869302,1.53945989,2738.2,2738.0,0.41704599]
[1643690869504,2.0087445,2738.3,2738.0,0.41704599]
[1643690869703,2.45251521,2738.2,2738.0,0.41704599]
[1643690869906,0.9130691,2738.2,2738.0,0.41704599]
[1643690871758,2.0,2738.1,2737.6,0.913]
[1643690871960,2.0,2738.1,2736.9,0.91322]
[1643690871961,1.53953521,2738.0,2736.9,0.91322]
[1643690872262,1.3958523,2737.9,2736.9,0.3]
[1643690872462,1.53953521,2737.8,2736.9,0.3]
[1643690872661,0.1826,2737.7,2736.8,0.3]
[1643690872961,0.1826,2737.7,2736.8,1.3]
[1643690873161,3.42021028,2737.5,2737.4,0.32509404]
[1643690873762,3.42021028,2737.5,2736.8,2.21327]
[1643690873962,4.33346018,2737.5,2736.8,2.21327]
[1643690874166,4.33346018,2737.5,2736.9,0.91326]
[1643690875095,3.5132499,2737.5,2737.4,0.35941344]
[1643690875497,2.6,2737.5,2737.4,0.35941344]
[1643690876301,2.6,2737.5,2737.1,2.12638]
[1643690877206,2.6,2737.5,2736.0,0.10172604]
[1643690877207,1.00212593,2737.2,2736.0,0.10172604]
[1643690877405,0.01243283,2736.3,2736.0,0.1]
[1643690878003,0.49499318,2736.6,2736.0,0.1]
[1643690878208,0.71155428,2736.3,2736.0,0.1]
[1643690878651,0.33716608,2736.5,2736.0,0.1]
[1643690878842,0.9136957,2736.4,2736.0,0.1]
[1643690880045,4.8782,2736.7,2736.0,0.1]
[1643690880242,4.8782,2736.7,2736.1,0.31517851]
[1643690880243,3.6695,2736.7,2736.1,0.31517851]
[1643690880453,3.6695,2736.7,2736.2,1.95430003]
[1643690880643,3.07146408,2737.1,2736.2,0.3]
[1643690880842,3.07146408,2737.1,2736.1,0.31517851]
[1643690881050,1.1674,2737.1,2736.4,0.86776154]
[1643690881244,0.9134493,2736.9,2736.4,1.16776154]
[1643690881442,0.9134493,2736.9,2736.3,0.3]
[1643690881643,1.97231012,2736.8,2736.0,0.1]
[1643690881846,0.1827,2736.7,2736.0,0.1]
[1643690882052,7.48855127,2736.7,2736.0,0.1]
[1643690882296,7.48855127,2736.7,2735.4,1.92732]
[1643690882596,0.72578773,2736.5,2736.2,0.34012736]
[1643690882796,0.9137092,2736.4,2736.2,0.34012736]
[1643690883397,4.9414,2736.7,2736.2,0.34012736]
[1643690883596,4.7587,2736.7,2736.2,1.25364736]
[1643690883796,4.7587,2736.7,2736.2,1.55364736]
[1643690884000,2.33343375,2737.1,2736.2,0.64012736]
[1643690884001,0.9134697,2736.8,2736.2,0.64012736]
[1643690884206,12.5331393,2737.2,2736.3,0.91346]
[1643690884629,0.1826,2737.1,2736.3,0.91346]
[1643690884801,9.2768393,2737.2,2736.3,1.91346]
[1643690885001,9.2768393,2737.2,2736.9,0.37785481]
[1643690885002,0.9134094,2737.1,2736.9,0.37785481]
[1643690886845,2.85508902,2737.1,2736.6,0.3]
[1643690887042,2.14146075,2737.0,2736.6,0.3]
[1643690887243,2.14146075,2737.0,2736.2,3.74025]
[1643690887244,0.9135081,2736.8,2736.2,3.74025]
[1643690887440,0.9135081,2736.8,2736.2,3.04025]
[1643690888038,0.9135081,2736.8,2736.3,1.11206042]
[1643690890795,0.9135081,2736.8,2736.4,0.91343]
[1643690891194,0.9135081,2736.8,2736.4,1.21343]
[1643690891392,0.9135081,2736.8,2736.4,0.3]
[1643690891691,0.9135081,2736.8,2736.3,2.41206042]
[1643690891894,0.9135081,2736.8,2736.4,0.91339]
[1643690892120,0.9133485,2737.0,2736.4,0.91339]
[1643690892294,2.0092832,2737.5,2736.4,0.91339]
[1643690892500,15.6503,2737.7,2736.4,0.91339]
[1643690892501,10.5545,2737.7,2736.5,2.59813849]
[1643690892697,7.3206,2737.7,2736.5,2.89813849]
[1643690892894,7.3206,2737.7,2737.6,0.3169323]
[1643690893094,0.71680467,2737.8,2737.1,0.91317]
[1643690893294,0.71680467,2737.8,2737.1,1.21317]
[1643690894142,0.9131516,2737.6,2737.5,0.36311018]
[1643690894757,0.1826,2738.2,2737.5,2.36311018]
[1643690894948,3.2013,2738.6,2737.5,1.27606018]
[1643690894949,0.1826,2738.5,2737.5,1.27606018]
[1643690895150,0.1826,2738.5,2737.5,1.57606018]
[1643690895345,1.53947202,2738.4,2737.5,1.57606018]
[1643690895746,2.34093839,2738.4,2738.0,0.44883848]
[1643690895943,0.80146637,2738.4,2738.0,0.44883848]
[1643690896747,0.80146637,2738.4,2737.8,1.21292]
[1643690896950,0.1826,2738.3,2737.8,0.3]
[1643690897193,0.9130389,2738.1,2737.5,2.8062425]
[1643690897999,0.9130389,2738.1,2737.9,0.37639247]
[1643690900496,0.91165189,2738.1,2737.9,0.37639247]
[1643690901342,0.1826,2738.0,2737.5,0.9803625]
[1643690901542,2.0088116,2738.0,2737.5,0.9803625]
[1643690901742,2.0088116,2738.0,2737.5,0.3]
[1643690902141,2.0088116,2738.0,2737.4,0.3]
[1643690902345,0.37886947,2737.9,2737.3,2.48514936]
[1643690902548,2.0088116,2738.0,2737.3,2.48514936]
[1643690902896,2.0088116,2738.0,2737.3,3.4246719]
[1643690903045,2.0088116,2738.0,2737.4,1.0]
[1643690904544,2.0088116,2738.0,2737.8,0.32725233]
[1643690904800,1.8262116,2738.0,2737.8,0.32725233]
[1643690905021,0.91165189,2738.1,2737.8,0.32725233]
[1643690907792,0.91165189,2738.1,2737.8,2.26545025]
[1643690907997,5.0271693,2738.6,2738.2,0.79526352]
[1643690908207,3.9177,2738.8,2738.2,1.09526352]
[1643690908459,1.53929376,2738.7,2738.2,1.09526352]
[1643690908657,5.0143,2739.2,2738.2,1.09526352]
[1643690908658,1.3353,2739.2,2738.2,1.09526352]
[1643690908864,0.9127598,2738.9,2738.2,1.09526352]
[1643690909060,0.13819997,2739.3,2738.2,1.09526352]
[1643690909061,1.72163627,2738.8,2738.2,0.3]
[1643690909263,1.53923627,2738.7,2737.9,1.0]
[1643690909661,0.1824,2738.6,2737.8,1.21292]
[1643690909965,0.1826,2739.1,2738.5,0.36557946]
[1643690910163,1.8258976,2738.8,2738.1,0.87557946]
[1643690910366,1.8258976,2738.8,2738.1,1.17557946]
[1643690910367,1.53927314,2738.7,2738.1,1.17557946]
[1643690910571,0.1824,2738.7,2738.1,1.17557946]
[1643690911563,1.8258976,2738.8,2738.1,1.17557946]
[1643690911770,0.1824,2738.7,2738.6,0.3926956]
[1643690911964,1.8258976,2738.8,2738.5,0.42398729]
[1643690912211,1.8258976,2738.8,2738.1,2.08844946]
[1643690912417,1.8258976,2738.8,2738.1,0.3]
[1643690912611,1.8258976,2738.8,2738.0,1.3]
[1643690912812,0.1824,2738.7,2738.0,0.3]
[1643690913014,0.9128743,2738.6,2737.6,1.82578]
[1643690913220,0.9128743,2738.6,2738.3,0.41726428]
[1643690914415,0.9128743,2738.6,2738.0,1.14589575]
[1643690914620,1.0952743,2738.6,2738.0,1.14589575]
[1643690915016,1.0952743,2738.6,2737.7,3.12582]
[1643690915416,1.0952743,2738.6,2738.3,0.41684207]
[1643690915658,1.0952743,2738.6,2737.7,3.12582]
[1643690916041,0.70820659,2738.5,2737.8,0.68956875]
[1643690916241,0.9129786,2738.4,2737.8,0.68956875]
[1643690917449,0.9129786,2738.4,2738.2,0.36200925]
[1643690917850,0.9129786,2738.4,2737.8,0.68956875]
[1643690918048,0.9129786,2738.4,2737.8,0.58956875]
[1643690918858,0.9129786,2738.4,2737.9,0.91293]
[1643690921098,0.9129786,2738.4,2738.2,0.4393539]
[1643690921696,0.1824,2738.6,2738.2,0.4393539]
[1643690921998,0.1824,2739.1,2738.2,0.4393539]
[1643690922306,4.6718,2739.2,2738.2,1.0393539]
[1643690922702,5.5845039,2739.2,2739.0,0.34632914]
[1643690922903,4.4405039,2739.2,2739.0,0.34632914]
[1643690923546,0.9127039,2739.2,2739.0,0.34632914]
[1643690923946,0.9127039,2739.2,2738.6,0.9127]
[1643690924153,1.72152631,2739.1,2737.9,4.05931]
[1643690924353,4.81876913,2739.0,2737.6,1.82554]
[1643690924555,1.72152631,2738.9,2737.6,1.82554]
[1643690924754,3.76497487,2738.8,2737.6,1.82554]
[1643690924951,0.1826,2738.7,2737.6,1.82554]
[1643690925181,0.87707461,2738.4,2737.6,0.91177771]
[1643690925457,1.79002811,2738.4,2737.6,0.91177771]
[1643690925852,1.79002811,2738.4,2737.6,2.73745771]
[1643690926051,0.9129535,2738.4,2737.8,0.91295]
[1643690926256,0.9129535,2738.4,2737.8,1.21295]
[1643690927187,0.9129535,2738.4,2738.2,0.40503712]
[1643690927391,0.1826,2738.5,2738.2,0.40503712]
[1643690929698,1.1801,2738.6,2738.2,0.40503712]
[1643690929902,0.9128401,2738.6,2738.2,0.40503712]
[1643690930099,0.9128401,2738.6,2738.2,0.35503712]
[1643690930499,0.9128401,2738.6,2738.0,1.21289]
[1643690930701,0.1824,2738.5,2738.0,1.21289]
[1643690931147,0.1824,2738.5,2738.0,0.3]
[1643690931346,0.1824,2738.5,2738.1,0.91286]
[1643690931552,1.0952401,2738.6,2738.1,0.91286]
[1643690931745,2.99989126,2738.6,2738.3,0.43298474]
[1643690931945,1.0952401,2738.6,2738.1,0.91286]
[1643690932951,1.0952401,2738.6,2738.5,0.35776566]
[1643690934054,1.0952401,2738.6,2738.1,1.91286]
[1643690934251,1.0952401,2738.6,2738.1,1.0]
[1643690934692,1.11006989,2738.6,2738.0,1.3]
[1643690934893,0.92766989,2738.6,2738.0,0.3]
[1643690935093,0.92766989,2738.6,2738.3,0.36403657]
[1643690936897,0.92766989,2738.6,2738.0,1.3]
[1643690937097,1.53924724,2738.5,2738.0,1.3]
[1643690937300,1.53924724,2738.5,2738.0,0.3]
[1643690937499,1.53924724,2738.5,2738.0,1.3]
[1643690938100,1.53924724,2738.5,2738.1,0.76565638]
[1643690938444,0.92766989,2738.6,2738.1,0.76565638]
[1643690938647,1.53924708,2738.5,2738.1,0.76565638]
[1643690939043,1.53924708,2738.5,2738.0,1.3]
[1643690939251,1.53924708,2738.5,2738.4,0.44259849]
[1643690942389,1.53924708,2738.5,2738.0,2.02311824]
[1643690943289,1.53924708,2738.5,2738.0,1.3]
[1643690943489,1.53924708,2738.5,2738.2,0.32503542]
[1643690946544,0.9128401,2738.6,2738.2,0.32503542]
[1643690946745,1.53921822,2738.5,2738.2,0.32503542]
[1643690947556,0.9128401,2738.6,2738.2,0.32503542]
[1643690947748,0.1824,2738.5,2738.2,0.32503542]
[1643690947949,0.9128401,2738.6,2738.2,0.32503542]
[1643690948150,1.0952401,2738.6,2738.2,0.32503542]
[1643690951385,0.9128401,2738.6,2738.2,0.32503542]
[1643690954150,0.91145233,2738.6,2738.2,0.32503542]
[1643690968938,0.91145233,2738.6,2738.4,0.8535211]
[1643690969141,0.9126476,2738.9,2738.4,1.7662611]
[1643690969346,1.8252202,2739.3,2738.4,2.8368611]
[1643690969543,1.53895706,2739.1,2738.4,1.9241211]
[1643690969946,0.32059997,2739.5,2738.4,1.9241211]
[1643690970250,0.32059997,2739.5,2739.0,0.91349537]
[1643690970446,0.1824,2739.5,2739.0,0.91349537]
[1643690970641,2.45136963,2739.4,2739.0,1.21349537]
[1643690970840,1.1886,2739.6,2739.0,1.21349537]
[1643690971038,1.53880172,2739.5,2739.0,1.21349537]
[1643690971443,1.53880172,2739.5,2739.4,0.32124811]
[1643690971644,0.912384,2739.8,2739.4,0.32124811]
[1643690971848,1.53866984,2739.7,2739.4,0.32124811]
[1643690972040,1.53866984,2739.7,2739.1,3.13135946]
[1643690972493,1.094784,2739.8,2739.4,0.91237]
[1643690972691,0.912384,2739.8,2739.4,0.91237]
[1643690972893,0.912384,2739.8,2739.4,2.21237]
[1643690973093,0.912384,2739.8,2739.5,0.37270656]
[1643690973291,1.53868315,2739.7,2739.5,0.37270656]
[1643690973693,1.53868315,2739.7,2739.4,1.21237]
[1643690974093,0.912384,2739.8,2739.4,1.21237]
[1643690974694,0.912384,2739.8,2739.5,0.31828824]
[1643690975952,0.912384,2739.8,2739.5,1.11928768]
[1643690977152,0.91105901,2739.8,2739.5,1.11928768]
[1643690978658,1.53870654,2739.7,2739.5,1.11928768]
[1643690979461,0.91105901,2739.8,2739.5,1.11928768]
[1643690980903,5.7705691,2739.9,2739.6,0.91239]
[1643690981098,0.9123691,2739.9,2739.6,0.91239]
[1643690981902,0.9123691,2739.9,2739.6,2.8778531]
[1643690982100,0.9123691,2739.9,2739.6,3.1778531]
[1643690982305,0.9123691,2739.9,2739.7,1.0]
[1643690982705,0.9123691,2739.9,2739.6,1.21239]
[1643690982908,0.9123111,2740.1,2739.6,1.21239]
[1643690983946,0.9123111,2740.1,2739.6,0.91239]
[1643690984147,1.53859565,2740.0,2739.6,1.21239]
[1643690984347,1.72099565,2740.0,2739.6,1.21239]
[1643690984553,0.1824,2740.0,2739.6,1.21239]
[1643690987604,1.0947111,2740.1,2739.6,1.21239]
[1643690988404,1.0947111,2740.1,2740.0,0.33726648]
[1643690988606,1.0947111,2740.1,2739.6,1.21239]
[1643690988802,1.0947111,2740.1,2739.6,0.91239]
[1643690989004,1.0947111,2740.1,2739.9,0.36613504]
[1643690989703,1.0947111,2740.1,2739.6,0.91239]
[1643690989902,0.9123111,2740.1,2739.6,0.91239]
[1643690991176,0.9123111,2740.1,2739.8,0.44512131]
[1643690994690,0.9123111,2740.1,2739.8,1.35744131]
[1643690995794,4.5052492,2740.3,2740.0,0.93534846]
[1643690995994,1.0946492,2740.3,2740.0,0.93534846]
[1643690996297,1.0946492,2740.3,2740.0,0.91226]
[1643690997801,1.0946492,2740.3,2740.0,1.81468332]
[1643690998200,0.9122492,2740.3,2740.0,1.81468332]
[1643690998643,0.9122492,2740.3,2740.0,2.11468332]
[1643690999656,0.9122492,2740.3,2740.0,1.21226]
[1643691000056,7.44,2740.7,2740.2,0.9121]
[1643691000253,7.44,2740.7,2740.2,1.9121]
[1643691000452,7.44,2740.7,2740.2,0.9121]
[1643691000651,7.44,2740.7,2740.2,1.2121]
[1643691001050,7.44,2740.7,2740.4,0.91206]
[1643691001255,7.44,2740.7,2740.5,0.95094774]
[1643691002298,7.44,2740.7,2740.4,0.91206]
[1643691002501,7.44,2740.7,2739.2,1.1691]
[1643691002502,3.80628296,2740.6,2739.2,1.1691]
[1643691002700,3.5040039,2740.6,2739.2,1.1691]
[1643691002898,1.53832755,2740.5,2739.2,1.1691]
[1643691003097,0.1824,2740.4,2739.2,1.1691]
[1643691003300,1.08911584,2740.4,2740.0,0.43533268]
[1643691003501,1.08911584,2740.4,2739.2,1.1691]
[1643691003502,0.912314,2740.3,2739.2,1.1691]
[1643691003705,2.101614,2740.3,2739.2,1.1691]
[1643691004104,2.101614,2740.3,2739.6,1.82458]
[1643691004301,2.101614,2740.3,2739.6,2.82458]
[1643691005401,2.101614,2740.3,2740.0,0.36516554]
[1643691005951,2.284014,2740.3,2740.0,0.36516554]
[1643691007457,1.094714,2740.3,2739.9,0.91228]
[1643691007760,0.912314,2740.3,2739.9,0.91228]
[1643691008757,1.094714,2740.3,2739.9,0.91228]
[1643691010511,1.094714,2740.3,2740.0,0.39816749]
[1643691013005,0.912314,2740.3,2740.0,0.39816749]
[1643691013201,0.91090694,2740.3,2740.0,0.39816749]
[1643691015456,0.90671584,2740.4,2740.0,0.39816749]
[1643691015656,0.9122062,2740.5,2740.1,0.91221]
[1643691015889,1.53835028,2740.4,2740.1,0.91221]
[1643691016257,0.9122062,2740.5,2740.1,0.91221]
[1643691017702,1.53834204,2740.4,2740.1,0.91221]
[1643691018603,0.9122062,2740.5,2740.1,0.91221]
[1643691019410,1.53835332,2740.4,2740.1,0.91221]
[1643691019904,0.9122062,2740.5,2740.1,0.91221]
[1643691020305,0.9121374,2740.6,2740.1,0.91221]
[1643691020506,1.5382937,2740.5,2740.1,1.91221]
[1643691020707,7.44,2740.7,2740.1,2.21221]
[1643691020952,7.44,2740.7,2740.4,0.912]
[1643691021356,7.44,2740.7,2740.5,0.37010185]
[1643691022151,7.44,2740.7,2740.6,1.8239]
[1643691024151,7.43685096,2740.7,2740.6,1.8239]
[1643691026311,0.1824,2741.0,2740.6,1.8239]
[1643691026615,2.64334555,2741.1,2740.6,1.8239]
[1643691026811,1.53804872,2741.0,2740.6,1.8239]
[1643691027011,0.1824,2740.9,2740.6,1.8239]
[1643691027413,0.1824,2741.0,2740.6,1.8239]
[1643691028746,0.1824,2741.0,2740.7,0.3]
[1643691029150,1.0944403,2741.0,2740.7,0.3]
[1643691029554,1.0944403,2741.0,2740.8,0.91194]
[1643691029555,0.1824,2741.0,2740.8,0.91194]
[1643691029872,2.64334555,2741.1,2740.8,0.91194]
[1643691031054,2.64334555,2741.1,2741.0,0.41202682]
[1643691031553,2.64334555,2741.1,2740.7,0.68345187]
[1643691031554,4.18132831,2741.1,2740.7,0.68345187]
[1643691031755,2.46094555,2741.1,2740.6,1.8239]
[1643691032219,2.46094555,2741.1,2740.9,0.69100576]
[1643691032420,2.46094555,2741.1,2741.0,0.43241084]
[1643691033616,1.0942833,2741.4,2741.0,0.43241084]
[1643691034017,1.0942833,2741.4,2741.1,0.91187]
[1643691034420,0.9118833,2741.4,2741.1,0.91187]
[1643691036955,0.9118833,2741.4,2741.0,0.43241084]
[1643691039800,0.9013824,2741.3,2741.0,0.43241084]
[1643691041505,1.0942833,2741.4,2741.0,0.43241084]
[1643691043010,1.0942833,2741.4,2740.9,1.82371]
[1643691043209,1.5379647,2741.3,2740.6,1.82388]
[1643691043453,1.5379647,2741.3,2740.0,1.82408]
[1643691043454,0.9121231,2741.0,2740.2,0.91213]
[1643691043651,2.43662943,2740.9,2740.2,0.91213]
[1643691043850,0.4824,2740.9,2740.2,0.91213]
[1643691044251,0.9547856,2740.7,2740.2,0.91213]
[1643691044452,0.912197,2740.6,2740.2,0.91213]
[1643691050207,0.912197,2740.6,2740.2,1.21213]
[1643691050614,0.912197,2740.6,2740.2,0.3]
[1643691050810,0.912197,2740.6,2740.0,2.47938264]
[1643691053258,0.912197,2740.6,2740.1,0.91214]
[1643691054257,0.91078738,2740.6,2740.1,1.91214]
[1643691054457,0.91078738,2740.6,2740.3,0.95155961]
[1643691054702,0.91078738,2740.6,2740.5,0.34779324]
[1643691055300,0.91078738,2740.6,2740.4,0.91209]
[1643691055701,0.91078738,2740.6,2740.0,1.8243]
[1643691055904,0.91078738,2740.6,2740.1,0.3]
[1643691056300,0.91078738,2740.6,2740.2,0.41127975]
[1643691057103,0.91078738,2740.6,2740.2,1.32345975]
[1643691057304,0.91078738,2740.6,2740.2,1.62345975]
[1643691057705,1.59406974,2740.6,2740.2,0.3]
[1643691058104,1.59406974,2740.6,2740.0,2.1243]
[1643691059152,0.91078738,2740.6,2740.2,1.26855796]
[1643691059557,0.91078738,2740.6,2740.2,1.56855796]
[1643691062906,0.1824,2740.7,2740.2,1.56855796]
[1643691063905,2.3310773,2740.8,2740.2,1.56855796]
[1643691064104,2.3310773,2740.8,2740.4,0.91208]
[1643691064405,1.2366,2740.8,2740.4,0.91208]
[1643691065605,1.2366,2740.8,2740.7,0.38484017]
[1643691065805,1.2366,2740.8,2740.7,1.29686017]
[1643691066051,1.0944288,2741.0,2740.7,1.29686017]
[1643691066951,0.1824,2741.1,2740.7,1.29686017]
[1643691067758,0.1824,2741.1,2740.7,2.59686017]
[1643691068158,7.44,2741.2,2740.7,3.50874017]
[1643691068963,1.1371,2741.3,2740.7,4.42058017]
[1643691069161,1.1371,2741.3,2740.9,0.91182]
[1643691070808,1.1371,2741.3,2741.2,1.30990265]
[1643691071407,0.1824,2741.5,2741.2,0.91185]
[1643691071611,1.53768666,2741.4,2741.2,0.91185]
[1643691072609,2.44956676,2741.4,2741.2,0.91185]
[1643691072813,0.9118801,2741.4,2741.2,0.91185]
[1643691073311,0.9118801,2741.4,2740.8,1.82364]
[1643691074263,0.9118801,2741.4,2741.0,0.3888335]
[1643691074459,0.9118801,2741.4,2741.0,1.3007535]
[1643691076659,0.91090585,2741.4,2741.0,1.3007535]
[1643691084801,0.91090585,2741.4,2740.5,2.99497]
[1643691084802,0.9120817,2741.2,2740.6,1.82391]
[1643691085004,2.81655873,2741.2,2740.6,1.82391]
[1643691085203,0.1824,2741.1,2740.4,0.91211]
[1643691085405,0.1824,2741.4,2740.4,0.91211]
[1643691085619,1.53778262,2741.3,2740.4,0.91211]
[1643691085806,0.1824,2741.2,2740.4,0.91211]
[1643691086204,0.1824,2741.2,2740.7,0.43907748]
[1643691086405,1.0943778,2741.2,2740.8,0.91195]
[1643691087209,0.1824,2741.5,2740.8,0.91195]
[1643691088009,0.9119079,2741.3,2740.8,1.21195]
[1643691088214,2.0,2741.2,2740.5,1.3]
[1643691088449,2.1824,2741.5,2740.5,0.3]
[1643691088747,1.83783223,2741.4,2740.4,1.21212]
[1643691088954,3.72023223,2741.3,2740.3,1.1443]
[1643691089150,0.9121656,2740.7,2740.2,2.85822056]
[1643691089352,0.9121656,2740.7,2740.3,0.91214]
[1643691089658,7.44,2741.0,2740.3,1.91214]
[1643691090452,7.44,2741.0,2740.4,2.07061224]
[1643691090648,7.44,2741.0,2740.5,0.91196]
[1643691090852,7.44,2741.0,2740.6,1.91574321]
[1643691091049,7.44,2741.0,2740.4,4.06347195]
[1643691091851,7.44,2741.0,2740.4,4.97542195]
[1643691092313,7.44,2741.0,2740.7,0.91195]
[1643691095021,7.44,2741.0,2740.4,4.06347195]
[1643691095216,0.42245189,2740.8,2740.4,4.06347195]
[1643691095615,0.9120562,2741.1,2740.4,4.06347195]
[1643691096859,0.32706711,2741.0,2740.4,2.12392]
[1643691099468,0.9120562,2741.1,2740.6,0.91206]
[1643691099930,0.91119674,2741.1,2740.6,0.91206]
[1643691100526,1.24590931,2741.1,2740.6,0.91206]
[1643691100725,0.1824,2741.0,2740.6,0.91206]
[1643691101129,0.91119674,2741.1,2740.6,0.91206]